bitfinex-derivatives/quotes_BTCF0:USTF0_20250308
["timestamp","ask_amount","ask_price","bid_price","bid_amount"]
[1741422037019,0.1627505,86028.0,86027.0,0.10619978]
[1741422037639,0.08286667,86028.0,86027.0,0.10619978]
[1741422039022,0.045,86029.0,86027.0,0.10619978]
[1741422039215,0.3608,86059.0,86027.0,0.04807428]
[1741422039423,0.1642302,86043.0,86042.0,0.1162316]
[1741422039615,0.22351075,86043.0,86042.0,0.1162316]
[1741422039814,0.17551075,86043.0,86042.0,0.1162316]
[1741422040012,0.17551075,86043.0,86042.0,0.1641316]
[1741422040211,0.09563785,86043.0,86042.0,0.1641316]
[1741422040722,0.14463785,86043.0,86042.0,0.1641316]
[1741422040920,0.14463785,86043.0,86042.0,0.1162316]
[1741422041513,0.10568343,86043.0,86042.0,0.1162316]
[1741422041721,0.00017428,86044.0,86043.0,0.1162302]
[1741422041928,0.00017428,86044.0,86043.0,0.1621302]
[1741422043618,0.0475,86051.0,86050.0,0.1162208]
[1741422044219,0.156527,86053.0,86052.0,0.1162181]
[1741422045426,0.05815339,86053.0,86052.0,0.1162181]
[1741422045622,0.1162143,86055.0,86054.0,0.116214]
[1741422045923,0.1749487,86055.0,86054.0,0.116214]
[1741422046728,0.2242487,86055.0,86054.0,0.116214]
[1741422047329,0.2697487,86055.0,86054.0,0.116214]
[1741422048824,0.1535344,86055.0,86054.0,0.116214]
[1741422049923,0.1042344,86055.0,86054.0,0.116214]
[1741422051228,0.1499344,86055.0,86054.0,0.116214]
[1741422052031,0.2661484,86055.0,86054.0,0.116214]
[1741422052233,0.2661484,86055.0,86054.0,0.161514]
[1741422053640,0.12094564,86055.0,86054.0,0.354314]
[1741422053826,0.17874811,86055.0,86054.0,0.354314]
[1741422054727,0.17401647,86055.0,86054.0,0.354314]
[1741422055239,0.05780247,86055.0,86054.0,0.354314]
[1741422055433,0.10867263,86057.0,86056.0,0.1162126]
[1741422055738,0.04812278,86058.0,86057.0,0.1162113]
[1741422056035,0.22242556,86058.0,86057.0,0.1612113]
[1741422056237,0.16433268,86058.0,86057.0,0.1612113]
[1741422056825,0.13287122,86058.0,86057.0,0.1612113]
[1741422058134,0.13287122,86058.0,86057.0,0.16132039]
[1741422058530,0.19139971,86058.0,86057.0,0.16132039]
[1741422060039,0.10692849,86058.0,86057.0,0.16132039]
[1741422060535,0.22313839,86058.0,86057.0,0.04610909]
[1741422060937,0.22313839,86058.0,86057.0,0.20822039]
[1741422061135,0.22313839,86058.0,86057.0,0.20722039]
[1741422061532,0.14327351,86058.0,86057.0,0.20722039]
[1741422061732,0.14327351,86058.0,86057.0,0.20822039]
[1741422062838,0.14327351,86058.0,86057.0,0.09200909]
[1741422063536,0.14327351,86058.0,86057.0,0.09100909]
[1741422063841,0.14327351,86058.0,86057.0,0.04510909]
[1741422064541,0.02706361,86058.0,86034.0,0.279421]
[1741422064842,0.116237,86039.0,86038.0,0.1162361]
[1741422065433,0.116237,86039.0,86037.0,0.0486]
[1741422065434,0.116237,86038.0,86037.0,0.0486]
[1741422065635,0.178137,86038.0,86037.0,0.0486]
[1741422065943,0.0619,86038.0,86037.0,0.0486]
[1741422066143,0.178137,86038.0,86037.0,0.0486]
[1741422066535,0.177137,86038.0,86037.0,0.0486]
[1741422066840,0.177137,86038.0,86037.0,0.1648383]
[1741422067047,0.162737,86038.0,86037.0,0.1648383]
[1741422067941,0.0465,86038.0,86037.0,0.2135383]
[1741422068142,0.162737,86038.0,86037.0,0.2135383]
[1741422068747,0.0465,86038.0,86037.0,0.2135383]
[1741422068938,0.162737,86038.0,86037.0,0.2135383]
[1741422069650,0.08286147,86038.0,86037.0,0.2135383]
[1741422070346,0.08286147,86038.0,86037.0,0.0973]
[1741422070646,0.09726147,86038.0,86037.0,0.0973]
[1741422072242,0.09726147,86038.0,86037.0,0.2135383]
[1741422072444,0.09726147,86038.0,86037.0,0.0973]
[1741422072632,0.14476147,86038.0,86037.0,0.0973]
[1741422074340,0.0619,86038.0,86037.0,0.0973]
[1741422074548,0.178137,86038.0,86037.0,0.0973]
[1741422076144,0.163737,86038.0,86037.0,0.0973]
[1741422076740,0.163737,86038.0,86037.0,0.2135383]
[1741422077649,0.163737,86038.0,86037.0,0.0973]
[1741422077850,0.178137,86038.0,86037.0,0.0973]
[1741422078348,0.163737,86038.0,86037.0,0.0973]
[1741422079052,0.1162478,86030.0,86029.0,0.19297428]
[1741422079353,0.1162613,86020.0,86011.0,0.0581365]
[1741422079555,0.1162613,86020.0,86019.0,0.37128201]
[1741422080147,0.1767613,86020.0,86019.0,0.37128201]
[1741422082247,0.5375613,86020.0,86019.0,0.01048201]
[1741422088145,0.5375613,86020.0,86019.0,0.00174373]
[1741422088346,0.1162694,86014.0,86013.0,0.0454]
[1741422088949,0.1162694,86014.0,86013.0,0.04544813]
[1741422089152,0.2136694,86014.0,86013.0,0.04544813]
[1741422089656,0.2146694,86014.0,86013.0,0.16171883]
[1741422089856,0.001,86014.0,86013.0,0.20831883]
[1741422090856,0.1172694,86014.0,86013.0,0.20831883]
[1741422092149,0.001,86014.0,86013.0,0.20831883]
[1741422092348,0.1172694,86014.0,86013.0,0.20831883]
[1741422092946,0.001,86014.0,86013.0,0.20831883]
[1741422094357,0.1172694,86014.0,86013.0,0.20831883]
[1741422096655,0.1172694,86014.0,86013.0,0.04544813]
[1741422097162,0.11675376,86014.0,86013.0,0.04544813]
[1741422097457,0.21685376,86014.0,86013.0,0.04544813]
[1741422099060,0.11675376,86014.0,86013.0,0.16171883]
[1741422100764,0.00048436,86014.0,86013.0,0.16171883]
[1741422101061,0.11675376,86014.0,86013.0,0.04544813]
[1741422103862,0.11675376,86014.0,86013.0,0.16171883]
[1741422104860,0.11675376,86014.0,86013.0,0.04544813]
[1741422106364,0.21175376,86014.0,86013.0,0.04544813]
[1741422109260,0.1162735,86011.0,86010.0,0.00872765]
[1741422110167,0.1162735,86011.0,86010.0,0.05548765]
[1741422112461,0.1162735,86011.0,86010.0,0.00868765]
[1741422112682,0.1162748,86010.0,86007.0,4e-05]
[1741422112965,0.4770775,86008.0,86007.0,4e-05]
[1741422113364,0.4770775,86008.0,86003.0,0.0473]
[1741422113559,0.4770775,86008.0,86002.0,0.00017439]
[1741422113560,0.1162829,86004.0,86002.0,0.00017439]
[1741422113765,0.2930243,86003.0,86002.0,0.00017439]
[1741422114561,0.2930243,86003.0,86002.0,0.04747439]
[1741422115766,0.2950243,86003.0,86002.0,0.04747439]
[1741422116565,0.05,86003.0,86002.0,0.1725895]
[1741422116764,0.0806,86003.0,86002.0,0.2228895]
[1741422117161,0.1968843,86003.0,86002.0,0.1066039]
[1741422117565,0.0806,86003.0,86002.0,0.2228895]
[1741422117766,0.002,86003.0,86002.0,0.2228895]
[1741422118272,0.1182843,86003.0,86002.0,0.2228895]
[1741422118462,0.1182843,86003.0,86002.0,0.1066039]
[1741422120063,0.49850101,86005.0,86002.0,0.1066039]
[1741422120265,0.2111829,86004.0,86003.0,0.0481]
[1741422120773,0.2111829,86004.0,86003.0,0.0987]
[1741422121573,0.2131829,86004.0,86003.0,0.0987]
[1741422122770,0.2131829,86004.0,86003.0,0.0506]
[1741422123161,0.2131829,86004.0,86003.0,0.0987]
[1741422124067,0.1182829,86004.0,86003.0,0.0987]
[1741422126167,0.1182829,86004.0,86003.0,0.2149843]
[1741422126364,0.1182829,86004.0,86003.0,0.0987]
[1741422127967,0.4790829,86004.0,86003.0,0.0987]
[1741422128963,0.4790829,86004.0,86003.0,0.02913]
[1741422129170,0.41369413,86004.0,86003.0,0.06922222]
[1741422129472,0.41369413,86004.0,86003.0,0.11712222]
[1741422131775,0.33377975,86004.0,86003.0,0.11712222]
[1741422131964,0.45006265,86004.0,86003.0,0.11712222]
[1741422132167,0.45006265,86004.0,86003.0,0.16702222]
[1741422133176,0.25386537,86004.0,86003.0,0.28330652]
[1741422133379,0.37014827,86004.0,86003.0,0.28330652]
[1741422134077,0.1162829,86004.0,86003.0,0.28330652]
[1741422135274,0.07892,86012.0,86003.0,0.16702222]
[1741422135480,0.1951952,86012.0,86011.0,0.1162735]
[1741422135980,0.1951952,86012.0,86011.0,0.15636572]
[1741422136379,0.1951952,86012.0,86011.0,0.20686572]
[1741422138172,0.1951952,86012.0,86011.0,0.09059222]
[1741422138383,0.6524952,86012.0,86011.0,0.09059222]
[1741422139474,9.474e-05,86013.0,86011.0,0.20686572]
[1741422139777,0.47722538,86028.0,86021.0,0.1162599]
[1741422139977,0.36097428,86028.0,86021.0,0.15635212]
[1741422140178,0.1162542,86026.0,86021.0,0.15635212]
[1741422140679,0.36097428,86028.0,86021.0,0.15644686]
[1741422140881,0.00105429,86028.0,86021.0,0.56404686]
[1741422141181,4.583e-05,86022.0,86021.0,0.56404686]
[1741422141978,4.583e-05,86022.0,86021.0,0.56504686]
[1741422143270,0.00017428,86028.0,86021.0,0.44878696]
[1741422143475,0.1743826,86027.0,86026.0,0.3091518]
[1741422143676,0.1743826,86027.0,86026.0,0.3596518]
[1741422143881,0.1743826,86027.0,86026.0,0.09059222]
[1741422144076,0.15921407,86027.0,86026.0,0.09059222]
[1741422144276,0.26644037,86027.0,86026.0,0.09059222]
[1741422144478,0.26644037,86027.0,86026.0,0.01078071]
[1741422144982,0.1162532,86026.0,86025.0,4e-05]
[1741422145182,0.1152532,86026.0,86025.0,4e-05]
[1741422145382,0.2158532,86026.0,86025.0,4e-05]
[1741422145979,0.1162586,86022.0,86021.0,9.474e-05]
[1741422146182,0.1152586,86022.0,86021.0,0.11635464]
[1741422146381,0.0504,86023.0,86022.0,0.1162586]
[1741422147089,0.1666572,86023.0,86022.0,0.1162586]
[1741422147475,0.1162586,86022.0,86021.0,9.474e-05]
[1741422147784,0.2102586,86022.0,86021.0,0.00109474]
[1741422148090,0.2102586,86022.0,86021.0,0.04769474]
[1741422148479,0.2102586,86022.0,86021.0,0.04669474]
[1741422148480,0.2092586,86022.0,86021.0,0.04669474]
[1741422149076,0.2102586,86022.0,86021.0,0.04769474]
[1741422149488,0.2102586,86022.0,86021.0,0.00109474]
[1741422150393,0.2102586,86022.0,86021.0,0.05129474]
[1741422150893,0.2102586,86022.0,86021.0,0.09919474]
[1741422151085,0.2102586,86022.0,86021.0,0.05129474]
[1741422151490,0.2102586,86022.0,86021.0,0.00109474]
[1741422151885,0.2102586,86022.0,86021.0,0.05169474]
[1741422152080,0.2102586,86022.0,86021.0,0.10079474]
[1741422152290,0.2102586,86022.0,86021.0,0.21705464]
[1741422152691,0.001,86022.0,86021.0,0.21705464]
[1741422152895,0.00017428,86028.0,86027.0,0.1162518]
[1741422153584,0.00017428,86028.0,86027.0,0.2159518]
[1741422154193,0.05105834,86032.0,86031.0,0.1162464]
[1741422154996,0.05105834,86032.0,86031.0,0.2126464]
[1741422155398,0.05305834,86032.0,86031.0,0.2136464]
[1741422159000,0.1162459,86032.0,86031.0,0.2136451]
[1741422160005,0.0788,86034.0,86031.0,0.2136451]
[1741422160195,0.0788,86034.0,86033.0,0.1162437]
[1741422160389,0.1950424,86034.0,86033.0,0.1162437]
[1741422160594,0.1950424,86034.0,86033.0,0.1670437]
[1741422161094,0.1950424,86034.0,86033.0,0.0508]
[1741422161501,0.1950424,86034.0,86033.0,0.0518]
[1741422162001,0.2433424,86034.0,86033.0,0.0518]
[1741422162896,0.1645424,86034.0,86033.0,0.0518]
[1741422163401,0.1645424,86034.0,86033.0,0.1680437]
[1741422163601,0.1645424,86034.0,86033.0,0.0518]
[1741422164404,0.5253424,86034.0,86033.0,0.001]
[1741422166502,0.5253424,86034.0,86033.0,0.1037]
[1741422168100,0.5253424,86034.0,86033.0,0.0521]
[1741422168599,0.45997536,86034.0,86033.0,0.0521]
[1741422168995,0.45997536,86034.0,86033.0,0.001]
[1741422169201,0.45997536,86034.0,86033.0,0.0493]
[1741422170298,0.3946079,86034.0,86033.0,0.0493]
[1741422170703,0.12731131,86039.0,86033.0,0.0978]
[1741422171003,0.1947556,86039.0,86038.0,0.116237]
[1741422171900,0.1947556,86039.0,86038.0,0.164737]
[1741422172099,0.1658615,86039.0,86038.0,0.213037]
[1741422173403,0.08597529,86039.0,86038.0,0.213037]
[1741422173601,0.1004259,86039.0,86038.0,0.213037]
[1741422173797,0.2166615,86039.0,86038.0,0.0968]
[1741422174603,0.2166615,86039.0,86038.0,0.0978]
[1741422176195,0.2166615,86039.0,86038.0,0.214037]
[1741422177407,0.2166615,86039.0,86038.0,0.0978]
[1741422177608,0.13677682,86039.0,86038.0,0.0978]
[1741422177910,0.1162356,86039.0,86038.0,0.214037]
[1741422178217,8.943e-05,86041.0,86039.0,0.1162356]
[1741422178415,0.1162343,86041.0,86040.0,0.1162316]
[1741422178713,0.16529982,86041.0,86040.0,0.1162316]
[1741422178909,0.04906552,86041.0,86040.0,0.2138316]
[1741422179117,0.07836,86056.0,86051.0,0.1162194]
[1741422179612,0.1162144,86055.0,86051.0,0.1162194]
[1741422179915,0.04951128,86052.0,86051.0,0.1162194]
[1741422180227,0.0017439,86052.0,86051.0,0.2133194]
[1741422180411,0.0017439,86052.0,86051.0,0.0971]
[1741422180412,0.1663394,86052.0,86051.0,0.0971]
[1741422180603,0.10099331,86052.0,86051.0,0.0971]
[1741422181205,0.19679331,86052.0,86051.0,0.0971]
[1741422181511,0.1451144,86052.0,86051.0,0.0971]
[1741422181706,0.2613325,86052.0,86051.0,0.0971]
[1741422181906,0.6221325,86052.0,86051.0,0.0971]
[1741422182815,0.6221325,86052.0,86051.0,0.0981]
[1741422183521,0.2613325,86052.0,86051.0,0.0981]
[1741422183809,0.6221325,86052.0,86051.0,0.0981]
[1741422184009,0.6221325,86052.0,86051.0,0.10701769]
[1741422184412,0.5059144,86052.0,86050.0,4e-05]
[1741422184616,0.1162194,86051.0,86050.0,4e-05]
[1741422185009,0.2138194,86051.0,86050.0,4e-05]
[1741422185418,0.2138194,86051.0,86034.0,0.1162423]
[1741422185419,0.1162289,86044.0,86034.0,0.1162423]
[1741422185604,0.1936289,86044.0,86036.0,0.1162389]
[1741422186113,0.2897289,86044.0,86035.0,0.116241]
[1741422186417,0.2897289,86044.0,86031.0,0.0505]
[1741422187729,0.2897289,86044.0,86032.0,0.0504]
[1741422188016,0.2897289,86044.0,86043.0,0.00117439]
[1741422189417,0.22436651,86044.0,86043.0,0.00117439]
[1741422191710,0.22436651,86044.0,86043.0,0.04133248]
[1741422194413,0.37862067,86044.0,86043.0,0.04133248]
[1741422196019,0.37822067,86044.0,86043.0,0.04133248]
[1741422196224,0.25292067,86044.0,86043.0,0.18643248]
[1741422196422,0.33092067,86044.0,86043.0,0.18643248]
[1741422199325,0.0493144,86052.0,86043.0,0.18643248]
[1741422199519,0.07788,86049.0,86047.0,0.1162235]
[1741422199716,0.07788,86049.0,86048.0,0.25528159]
[1741422200132,0.1162215,86050.0,86049.0,0.1162221]
[1741422200423,0.1162215,86050.0,86049.0,0.25528019]
[1741422201024,0.0493144,86052.0,86051.0,0.1162194]
[1741422201214,0.1162181,86052.0,86051.0,0.1162194]
[1741422201416,0.1162181,86052.0,86051.0,0.15637749]
[1741422201824,0.1162181,86052.0,86051.0,0.04015809]
[1741422202332,0.1162181,86052.0,86051.0,0.13645809]
[1741422203141,0.15722787,86052.0,86051.0,0.13645809]
[1741422203821,0.15722787,86052.0,86051.0,0.13745809]
[1741422204126,0.09187523,86052.0,86051.0,0.13745809]
[1741422205027,0.09187523,86052.0,86051.0,0.25367749]
[1741422205235,0.09187523,86052.0,86051.0,0.13745809]
[1741422205826,0.04100977,86052.0,86051.0,0.25367749]
[1741422206128,0.00017439,86060.0,86059.0,0.1162086]
[1741422206325,0.00017439,86060.0,86059.0,0.15636669]
[1741422206827,0.04065611,86060.0,86059.0,0.25236669]
[1741422207128,0.04048295,86060.0,86059.0,0.25236669]
[1741422207635,0.04048295,86060.0,86059.0,0.25336669]
[1741422207830,0.15669015,86060.0,86059.0,0.25336669]
[1741422209124,0.0581005,86065.0,86062.0,0.0581018]
[1741422209325,8.495e-05,86066.0,86063.0,0.13755809]
[1741422209525,8.495e-05,86066.0,86065.0,0.1162005]
[1741422209526,0.11628635,86066.0,86065.0,0.1162005]
[1741422209726,8.495e-05,86066.0,86065.0,0.25205859]
[1741422210138,0.11707541,86069.0,86065.0,0.25205859]
[1741422210440,0.2162888,86069.0,86068.0,0.1161964]
[1741422210623,0.1000934,86069.0,86068.0,0.15635449]
[1741422211133,0.0419956,86069.0,86068.0,0.15645716]
[1741422211435,0.00174347,86070.0,86069.0,0.1161951]
[1741422211736,0.11793717,86070.0,86069.0,0.30395319]
[1741422212135,0.15868419,86070.0,86069.0,0.18775809]
[1741422212338,0.15868419,86070.0,86069.0,0.30395319]
[1741422213034,0.15868419,86070.0,86069.0,0.18775809]
[1741422213641,0.15868419,86070.0,86069.0,0.08725809]
[1741422213642,0.51948419,86070.0,86069.0,0.08725809]
[1741422213831,0.51948419,86070.0,86069.0,0.04015809]
[1741422214139,0.52107527,86070.0,86069.0,0.04015809]
[1741422214339,0.52107527,86070.0,86069.0,0.14035809]
[1741422214838,0.52107527,86070.0,86069.0,0.18855809]
[1741422215142,0.16027527,86070.0,86069.0,0.18955809]
[1741422215438,0.04408157,86070.0,86069.0,0.30575319]
[1741422217531,0.1161916,86072.0,86069.0,0.18955809]
[1741422217726,0.1161916,86072.0,86071.0,0.1161924]
[1741422217939,0.1161916,86072.0,86071.0,0.15635049]
[1741422218439,0.05086007,86072.0,86071.0,0.15635049]
[1741422218639,0.09237231,86072.0,86071.0,0.04015809]
[1741422218837,0.45317231,86072.0,86071.0,0.04015809]
[1741422219342,0.55157231,86072.0,86071.0,0.04015809]
[1741422221232,0.55157231,86072.0,86071.0,0.05002212]
[1741422221445,0.55157231,86072.0,86071.0,0.01706809]
[1741422221644,0.55157231,86072.0,86071.0,0.001]
[1741422222139,0.50071224,86072.0,86071.0,0.001]
[1741422222445,0.61690324,86072.0,86071.0,0.001]
[1741422224644,0.1161951,86069.0,86068.0,0.00010267]
[1741422224936,0.1161951,86069.0,86050.0,0.0479]
[1741422224937,0.1162045,86062.0,86050.0,0.0479]
[1741422225143,0.4770045,86062.0,86049.0,0.1044]
[1741422225728,0.4770045,86062.0,86052.0,4e-05]
[1741422225933,0.5814045,86062.0,86061.0,0.00030663]
[1741422227037,0.5814045,86062.0,86061.0,0.00922486]
[1741422227546,0.51605361,86062.0,86061.0,0.00922486]
[1741422228439,0.51805361,86062.0,86061.0,0.01022486]
[1741422229731,0.45270309,86062.0,86061.0,0.01022486]
[1741422230137,0.56890759,86062.0,86061.0,0.01022486]
[1741422234449,0.51620759,86062.0,86061.0,0.01022486]
[1741422235257,0.56650759,86062.0,86061.0,0.01022486]
[1741422236045,0.51620759,86062.0,86061.0,0.01022486]
[1741422236349,0.46350759,86062.0,86061.0,0.12643076]
[1741422236551,0.1182045,86062.0,86061.0,0.12543076]
[1741422236747,0.1182045,86062.0,86061.0,0.00922486]
[1741422236948,0.1182045,86062.0,86061.0,0.11232486]
[1741422238746,0.1182045,86062.0,86061.0,0.22853076]
[1741422238747,0.002,86062.0,86061.0,0.22853076]
[1741422238946,0.1162045,86062.0,86061.0,0.11232486]
[1741422239247,0.1182045,86062.0,86061.0,0.22953076]
[1741422239546,0.05286297,86062.0,86061.0,0.22953076]
[1741422240050,0.0456223,86064.0,86061.0,0.11332486]
[1741422240275,0.1182045,86062.0,86061.0,0.11232486]
[1741422241242,0.002,86062.0,86061.0,0.22853076]
[1741422241847,0.1182045,86062.0,86061.0,0.11232486]
[1741422242043,0.1162045,86062.0,86061.0,0.11232486]
[1741422242945,0.1664045,86062.0,86061.0,0.11232486]
[1741422243340,0.1664045,86062.0,86061.0,0.11332486]
[1741422243848,0.2166045,86062.0,86061.0,0.11332486]
[1741422244150,0.2166045,86062.0,86061.0,0.11301823]
[1741422244952,0.2166045,86062.0,86057.0,4e-05]
[1741422244953,0.1162099,86058.0,86057.0,4e-05]
[1741422245452,0.37173867,86062.0,86049.0,0.1028]
[1741422245453,0.0978,86059.0,86049.0,0.10297428]
[1741422245657,0.1162208,86050.0,86049.0,0.10297428]
[1741422248445,0.1162208,86050.0,86049.0,0.11180845]
[1741422249446,0.1172208,86050.0,86049.0,0.11280845]
[1741422249648,0.0518613,86050.0,86049.0,0.11280845]
[1741422250656,0.12293155,86052.0,86049.0,0.11280845]
[1741422250854,0.1162208,86050.0,86049.0,0.11280845]
[1741422251047,0.1667208,86050.0,86049.0,0.11280845]
[1741422251349,0.2169208,86050.0,86049.0,0.11280845]
[1741422252152,0.1162208,86050.0,86049.0,0.11280845]
[1741422252752,0.2158208,86050.0,86049.0,0.11280845]
[1741422255252,0.1162208,86050.0,86049.0,0.11280845]
[1741422259363,0.078,86051.0,86049.0,0.11280845]
[1741422259660,0.00096001,86054.0,86053.0,0.1162167]
[1741422259863,0.1162146,86055.0,86054.0,0.116214]
[1741422260048,0.00088001,86063.0,86050.0,0.5537]
[1741422260255,0.7318,86079.0,86065.0,0.1162002]
[1741422260256,0.1162002,86066.0,86065.0,0.1162002]
[1741422260563,0.078,86067.0,86066.0,0.1161991]
[1741422260765,0.01265844,86067.0,86066.0,0.1161991]
[1741422260949,0.12885624,86067.0,86064.0,0.1162016]
[1741422261153,0.1161991,86066.0,86065.0,0.2169005]
[1741422262770,0.1151991,86066.0,86065.0,0.2169005]
[1741422262955,0.1151991,86066.0,86065.0,0.1007]
[1741422263360,0.1151991,86066.0,86065.0,0.1017]
[1741422263569,0.04985797,86066.0,86065.0,0.2179005]
[1741422264155,0.04247225,86072.0,86071.0,0.1161924]
[1741422264351,0.04151224,86072.0,86071.0,0.1161924]
[1741422264561,0.00174302,86090.0,86079.0,0.1161816]
[1741422264755,0.00174302,86090.0,86079.0,0.4769816]
[1741422264955,0.1161699,86088.0,86087.0,0.1161681]
[1741422265554,0.05066767,86088.0,86087.0,0.1161681]
[1741422265762,0.00174302,86090.0,86087.0,0.2156681]
[1741422266061,0.00174302,86090.0,86089.0,0.1161681]
[1741422266364,0.05266923,86090.0,86089.0,0.1161681]
[1741422266559,0.05266923,86090.0,86089.0,0.1654681]
[1741422266869,0.05092621,86090.0,86089.0,0.2170681]
[1741422267057,0.00017428,86096.0,86089.0,0.2170681]
[1741422267259,0.00017428,86096.0,86095.0,0.11616]
[1741422267659,0.05284731,86096.0,86095.0,0.21646]
[1741422269460,0.00117428,86096.0,86095.0,0.21746]
[1741422273161,0.00014885,86106.0,86105.0,0.1161465]
[1741422273571,0.00014885,86106.0,86105.0,0.2151465]
[1741422274471,0.00014885,86106.0,86105.0,0.2161465]
[1741422274472,0.11729405,86106.0,86105.0,0.2161465]
[1741422275066,0.16890632,86106.0,86105.0,0.2161465]
[1741422276472,0.16890632,86106.0,86105.0,0.1]
[1741422276675,0.16890632,86106.0,86105.0,0.2161465]
[1741422278672,0.22220632,86106.0,86105.0,0.2161465]
[1741422279272,0.22220632,86106.0,86105.0,0.1]
[1741422280275,0.22220632,86106.0,86105.0,0.2161465]
[1741422280667,0.22220632,86106.0,86105.0,0.1]
[1741422281064,0.22220632,86106.0,86105.0,0.2161465]
[1741422281669,0.22220632,86106.0,86105.0,0.1]
[1741422281866,0.22220632,86106.0,86105.0,0.2161465]
[1741422282069,0.05276112,86106.0,86105.0,0.2161465]
[1741422282870,0.16890632,86106.0,86105.0,0.2161465]
[1741422284869,0.16790632,86106.0,86105.0,0.2161465]
[1741422288472,0.16790632,86106.0,86105.0,0.5769465]
[1741422288979,0.16790632,86106.0,86105.0,0.6284465]
[1741422289976,0.05176112,86106.0,86105.0,0.6284465]
[1741422290482,0.16790632,86106.0,86105.0,0.6284465]
[1741422291472,0.10260322,86106.0,86105.0,0.6284465]
[1741422291871,0.10260322,86106.0,86105.0,0.5769465]
[1741422292281,0.1638714,86108.0,86105.0,0.5769465]
[1741422292479,0.1161452,86106.0,86105.0,0.6350193]
[1741422295277,0.27459159,86108.0,86107.0,0.1161438]
[1741422295880,0.116145,86107.0,86105.0,0.4614]
[1741422296082,0.1161452,86106.0,86105.0,0.4608]
[1741422296281,0.2212452,86106.0,86105.0,0.5769465]
[1741422296876,0.2202452,86106.0,86105.0,0.4087]
[1741422297480,0.2202452,86106.0,86105.0,0.4097]
[1741422297679,0.2202452,86106.0,86105.0,0.0489]
[1741422297886,0.2976452,86106.0,86105.0,0.001]
[1741422298481,0.2976452,86106.0,86105.0,0.0537]
[1741422298782,0.2976452,86106.0,86105.0,0.001]
[1741422299284,0.5433,86106.0,86104.0,4e-05]
[1741422299487,0.5433,86106.0,86098.0,0.0527]
[1741422299678,0.1161546,86099.0,86098.0,0.0527]
[1741422300184,0.03632608,86098.0,86095.0,0.00857354]
[1741422300379,0.217756,86098.0,86095.0,0.00857354]
[1741422300584,0.13792594,86098.0,86096.0,4e-05]
[1741422300789,0.13792594,86098.0,86096.0,0.05034]
[1741422301580,0.116156,86098.0,86096.0,4e-05]
[1741422301886,0.1161681,86089.0,86088.0,0.03090459]
[1741422302389,0.0987,86090.0,86087.0,0.36941295]
[1741422302688,0.1643695,86088.0,86087.0,0.36941295]
[1741422302886,0.09904739,86088.0,86087.0,0.36950107]
[1741422303190,0.09904739,86088.0,86087.0,0.00870107]
[1741422303692,0.14954739,86088.0,86087.0,0.00870107]
[1741422304586,0.14854739,86088.0,86087.0,0.00870107]
[1741422304785,0.19754739,86088.0,86087.0,0.00870107]
[1741422305186,0.19954739,86088.0,86087.0,0.00970107]
[1741422305986,0.24914739,86088.0,86087.0,0.00970107]
[1741422306789,0.1161789,86081.0,86080.0,0.00017428]
[1741422307096,0.4769789,86081.0,86080.0,0.00017428]
[1741422307801,0.5789789,86081.0,86080.0,0.00023958]
[1741422308004,0.5789789,86081.0,86080.0,0.00900518]
[1741422308504,0.5829789,86081.0,86080.0,0.01000518]
[1741422310204,0.4668,86081.0,86080.0,0.01000518]
[1741422310407,0.5333789,86081.0,86080.0,0.01000518]
[1741422310705,0.6105389,86081.0,86080.0,0.01000518]
[1741422310905,0.6105389,86081.0,86080.0,0.06230518]
[1741422311700,0.54520595,86081.0,86080.0,0.06230518]
[1741422312307,0.46804595,86081.0,86080.0,0.06230518]
[1741422312507,0.54512595,86081.0,86080.0,0.06230518]
[1741422314910,0.2496589,86081.0,86080.0,0.06230518]
[1741422315302,0.3017589,86081.0,86080.0,0.06230518]
[1741422316510,0.13348,86081.0,86080.0,0.17848538]
[1741422316705,0.004,86081.0,86080.0,0.17848538]
[1741422316900,0.004,86081.0,86080.0,0.22868538]
[1741422317302,0.0580748,86103.0,86081.0,0.1929]
[1741422317508,0.07728,86098.0,86091.0,0.3608]
[1741422317705,0.07728,86098.0,86096.0,0.1161587]
[1741422318103,0.11633158,86097.0,86096.0,0.1161587]
[1741422318508,0.11633158,86097.0,86096.0,0.0532]
[1741422318808,0.11733158,86097.0,86096.0,0.0532]
[1741422319201,0.11633158,86097.0,86096.0,0.0532]
[1741422319405,0.12133158,86097.0,86096.0,0.0532]
[1741422320506,0.12133158,86097.0,86096.0,0.1014]
[1741422320705,0.12133158,86097.0,86096.0,0.2175587]
[1741422320911,0.12133158,86097.0,86096.0,0.1014]
[1741422321212,0.11633158,86097.0,86096.0,0.2175587]
[1741422321606,0.05101751,86097.0,86096.0,0.2175587]
[1741422323116,0.05101751,86097.0,86096.0,0.1014]
[1741422324305,0.05401751,86097.0,86096.0,0.1014]
[1741422324709,0.10001751,86097.0,86096.0,0.1014]
[1741422324900,0.05401751,86097.0,86096.0,0.1024]
[1741422325105,0.05401751,86097.0,86096.0,0.2185587]
[1741422325106,0.003,86097.0,86096.0,0.2185587]
[1741422325310,0.07728,86098.0,86096.0,0.2185587]
[1741422325311,0.07728,86098.0,86097.0,0.1161573]
[1741422325713,0.193436,86098.0,86097.0,0.2184573]
[1741422326217,0.193436,86098.0,86097.0,0.1023]
[1741422327507,0.196436,86098.0,86097.0,0.1023]
[1741422328219,0.13111887,86098.0,86097.0,0.1033]
[1741422329121,0.01496287,86098.0,86097.0,0.2194573]
[1741422329824,0.13111887,86098.0,86097.0,0.2194573]
[1741422330004,0.01496287,86098.0,86097.0,0.2194573]
[1741422330818,0.13111887,86098.0,86097.0,0.2184573]
[1741422331023,0.01496287,86098.0,86097.0,0.2184573]
[1741422331316,0.13111887,86098.0,86097.0,0.2184573]
[1741422331716,0.06580567,86098.0,86097.0,0.2184573]
[1741422332217,0.06880567,86098.0,86097.0,0.2184573]
[1741422332721,0.0580767,86100.0,86097.0,0.2184573]
[1741422332920,0.116156,86098.0,86097.0,0.2184546]
[1741422333715,0.116156,86098.0,86097.0,0.4113546]
[1741422336626,0.116156,86098.0,86097.0,0.1023]
[1741422338515,0.05084119,86098.0,86097.0,0.2184573]
[1741422338711,0.0523,86099.0,86097.0,0.2184573]
[1741422338929,0.116156,86098.0,86097.0,0.2184573]
[1741422339324,0.0523,86099.0,86098.0,0.116156]
[1741422339528,0.1684546,86099.0,86098.0,0.222556]
[1741422341624,0.10314078,86099.0,86098.0,0.1064]
[1741422342131,0.10314078,86099.0,86098.0,0.222556]
[1741422344120,0.3608,86107.0,86103.0,0.1161492]
[1741422344321,0.418872,86107.0,86104.0,0.2182479]
[1741422344521,0.1161461,86106.0,86104.0,0.2715479]
[1741422344721,0.11632045,86105.0,86104.0,0.2715479]
[1741422345418,0.11632045,86105.0,86104.0,0.1554]
[1741422345820,0.11632045,86105.0,86104.0,0.1564]